{"text_format":"1","workbook":"xlsx","n_sheets":2,"sheets":["Entrada de Folhas de Pagamentos","modelo_de_recibo_de_vencimento"],"not_rendered":{"charts":0,"images":0,"macros":1,"external_links":0,"defined_names":7,"comments":0,"pivot_tables":0},"unopened":[],"bounds":{"document_bytes":16777216,"sheet_cells":100000,"rows_first":2000,"rows_last":500,"rows_between":2000,"halvings":0,"cell_chars":16384,"cell_head_chars":4096},"cells_cut":0,"cells_raw":0,"read":"whole","date_system":"1900"}

{"sheet":"Entrada de Folhas de Pagamentos","index":0,"n_rows":13,"n_cols":24,"rows_kept":13,"cut":false,"hidden":false,"merged":[]}
[null,"CALCULADORA DE FOLHAS DE PAGAMENTOS",null,null,null,null,null,null,null,null,"FIM DE PERÍODO:","2013-04-08",null,"NOME DA EMPRESA:",null,"ADVENTURE WORKS"]
[]
[null,"ID","Nome do Funcionário","Horas em Atividade Normais","Férias (em horas)","Faltas por Doença (em horas)","Horas Extraordinárias","Taxa de Horas Extraordinárias","Salário Bruto","Impostos e Deduções","Outras Deduções","Rendimento Líquido"," ","Vencimento por Hora","Estado do Imposto","Subsídios Federais","Tributação ao Estado","Imposto sobre o Salário","Imposto para a Segurança Social","Imposto do Seguro de Saúde","Total da Retenção de Impostos","Dedução do Seguro","Outras Deduções Normais","Total de Deduções\nNormais"]
[null,1001,"Luís Alverca",50,5,1,null,null,{"$f":"SUM(Empregados[[#This Row],[Horas em Atividade Normais]:[Faltas por Doença (em horas)]])*Empregados[[#This Row],[Vencimento por Hora]]+Empregados[[#This Row],[Horas Extraordinárias]]*Empregados[[#This Row],[Taxa de Horas Extraordinárias]]","v":560},{"$f":"Empregados[[#This Row],[Salário Bruto]]*Empregados[[#This Row],[Total da Retenção de Impostos]] + Empregados[[#This Row],[Total de Deduções\nNormais]]","v":273.08000000000004},20,{"$f":"Empregados[[#This Row],[Salário Bruto]]-Empregados[[#This Row],[Impostos e Deduções]]-Empregados[[#This Row],[Outras Deduções]]","v":266.91999999999996},null,10,1,4,2.3E-2,0.28000000000000003,6.3E-2,1.4500000000000001E-2,{"$f":"SUM(Empregados[[#This Row],[Tributação ao Estado]:[Imposto do Seguro de Saúde]])","v":0.38050000000000006},20,40,{"$f":"SUM(Empregados[[#This Row],[Dedução do Seguro]:[Outras Deduções Normais]])","v":60}]
[null,1002,"Francisco Chaves",40,null,null,null,null,{"$f":"SUM(Empregados[[#This Row],[Horas em Atividade Normais]:[Faltas por Doença (em horas)]])*Empregados[[#This Row],[Vencimento por Hora]]+Empregados[[#This Row],[Horas Extraordinárias]]*Empregados[[#This Row],[Taxa de Horas Extraordinárias]]","v":320},{"$f":"Empregados[[#This Row],[Salário Bruto]]*Empregados[[#This Row],[Total da Retenção de Impostos]] + Empregados[[#This Row],[Total de Deduções\nNormais]]","v":131.76000000000002},null,{"$f":"Empregados[[#This Row],[Salário Bruto]]-Empregados[[#This Row],[Impostos e Deduções]]-Empregados[[#This Row],[Outras Deduções]]","v":188.23999999999998},null,8,1,1,2.3E-2,0.28000000000000003,6.3E-2,1.4500000000000001E-2,{"$f":"SUM(Empregados[[#This Row],[Tributação ao Estado]:[Imposto do Seguro de Saúde]])","v":0.38050000000000006},0,10,{"$f":"SUM(Empregados[[#This Row],[Dedução do Seguro]:[Outras Deduções Normais]])","v":10}]
[null,1003,"Leonor Marques",35,3,null,null,null,{"$f":"SUM(Empregados[[#This Row],[Horas em Atividade Normais]:[Faltas por Doença (em horas)]])*Empregados[[#This Row],[Vencimento por Hora]]+Empregados[[#This Row],[Horas Extraordinárias]]*Empregados[[#This Row],[Taxa de Horas Extraordinárias]]","v":532},{"$f":"Empregados[[#This Row],[Salário Bruto]]*Empregados[[#This Row],[Total da Retenção de Impostos]] + Empregados[[#This Row],[Total de Deduções\nNormais]]","v":240.42600000000004},null,{"$f":"Empregados[[#This Row],[Salário Bruto]]-Empregados[[#This Row],[Impostos e Deduções]]-Empregados[[#This Row],[Outras Deduções]]","v":291.57399999999996},null,14,1,3,2.3E-2,0.28000000000000003,6.3E-2,1.4500000000000001E-2,{"$f":"SUM(Empregados[[#This Row],[Tributação ao Estado]:[Imposto do Seguro de Saúde]])","v":0.38050000000000006},18,20,{"$f":"SUM(Empregados[[#This Row],[Dedução do Seguro]:[Outras Deduções Normais]])","v":38}]
[null,1008,"Carlos Grilo",50,5,1,null,null,{"$f":"SUM(Empregados[[#This Row],[Horas em Atividade Normais]:[Faltas por Doença (em horas)]])*Empregados[[#This Row],[Vencimento por Hora]]+Empregados[[#This Row],[Horas Extraordinárias]]*Empregados[[#This Row],[Taxa de Horas Extraordinárias]]","v":1120},{"$f":"Empregados[[#This Row],[Salário Bruto]]*Empregados[[#This Row],[Total da Retenção de Impostos]] + Empregados[[#This Row],[Total de Deduções\nNormais]]","v":441.16000000000008},null,{"$f":"Empregados[[#This Row],[Salário Bruto]]-Empregados[[#This Row],[Impostos e Deduções]]-Empregados[[#This Row],[Outras Deduções]]","v":678.83999999999992},null,20,1,0,2.3E-2,0.28000000000000003,6.3E-2,1.4500000000000001E-2,{"$f":"SUM(Empregados[[#This Row],[Tributação ao Estado]:[Imposto do Seguro de Saúde]])","v":0.38050000000000006},15,null,{"$f":"SUM(Empregados[[#This Row],[Dedução do Seguro]:[Outras Deduções Normais]])","v":15}]
[null,1011,"Susana Oliveira",40,null,null,2,15,{"$f":"SUM(Empregados[[#This Row],[Horas em Atividade Normais]:[Faltas por Doença (em horas)]])*Empregados[[#This Row],[Vencimento por Hora]]+Empregados[[#This Row],[Horas Extraordinárias]]*Empregados[[#This Row],[Taxa de Horas Extraordinárias]]","v":430},{"$f":"Empregados[[#This Row],[Salário Bruto]]*Empregados[[#This Row],[Total da Retenção de Impostos]] + Empregados[[#This Row],[Total de Deduções\nNormais]]","v":223.61500000000004},null,{"$f":"Empregados[[#This Row],[Salário Bruto]]-Empregados[[#This Row],[Impostos e Deduções]]-Empregados[[#This Row],[Outras Deduções]]","v":206.38499999999996},null,10,1,0,2.3E-2,0.28000000000000003,6.3E-2,1.4500000000000001E-2,{"$f":"SUM(Empregados[[#This Row],[Tributação ao Estado]:[Imposto do Seguro de Saúde]])","v":0.38050000000000006},20,40,{"$f":"SUM(Empregados[[#This Row],[Dedução do Seguro]:[Outras Deduções Normais]])","v":60}]
[null,1012,"Rui Raposo",40,5,1,null,null,{"$f":"SUM(Empregados[[#This Row],[Horas em Atividade Normais]:[Faltas por Doença (em horas)]])*Empregados[[#This Row],[Vencimento por Hora]]+Empregados[[#This Row],[Horas Extraordinárias]]*Empregados[[#This Row],[Taxa de Horas Extraordinárias]]","v":552},{"$f":"Empregados[[#This Row],[Salário Bruto]]*Empregados[[#This Row],[Total da Retenção de Impostos]] + Empregados[[#This Row],[Total de Deduções\nNormais]]","v":270.03600000000006},null,{"$f":"Empregados[[#This Row],[Salário Bruto]]-Empregados[[#This Row],[Impostos e Deduções]]-Empregados[[#This Row],[Outras Deduções]]","v":281.96399999999994},null,12,1,4,2.3E-2,0.28000000000000003,6.3E-2,1.4500000000000001E-2,{"$f":"SUM(Empregados[[#This Row],[Tributação ao Estado]:[Imposto do Seguro de Saúde]])","v":0.38050000000000006},20,40,{"$f":"SUM(Empregados[[#This Row],[Dedução do Seguro]:[Outras Deduções Normais]])","v":60}]
[null,1025,"Luciana Ramos",36,null,2,1,18,{"$f":"SUM(Empregados[[#This Row],[Horas em Atividade Normais]:[Faltas por Doença (em horas)]])*Empregados[[#This Row],[Vencimento por Hora]]+Empregados[[#This Row],[Horas Extraordinárias]]*Empregados[[#This Row],[Taxa de Horas Extraordinárias]]","v":474},{"$f":"Empregados[[#This Row],[Salário Bruto]]*Empregados[[#This Row],[Total da Retenção de Impostos]] + Empregados[[#This Row],[Total de Deduções\nNormais]]","v":225.35700000000003},25,{"$f":"Empregados[[#This Row],[Salário Bruto]]-Empregados[[#This Row],[Impostos e Deduções]]-Empregados[[#This Row],[Outras Deduções]]","v":223.64299999999997},null,12,1,2,2.3E-2,0.28000000000000003,6.3E-2,1.4500000000000001E-2,{"$f":"SUM(Empregados[[#This Row],[Tributação ao Estado]:[Imposto do Seguro de Saúde]])","v":0.38050000000000006},25,20,{"$f":"SUM(Empregados[[#This Row],[Dedução do Seguro]:[Outras Deduções Normais]])","v":45}]
[null,1032,"Fernando Sousa",40,5,1,null,null,{"$f":"SUM(Empregados[[#This Row],[Horas em Atividade Normais]:[Faltas por Doença (em horas)]])*Empregados[[#This Row],[Vencimento por Hora]]+Empregados[[#This Row],[Horas Extraordinárias]]*Empregados[[#This Row],[Taxa de Horas Extraordinárias]]","v":460},{"$f":"Empregados[[#This Row],[Salário Bruto]]*Empregados[[#This Row],[Total da Retenção de Impostos]] + Empregados[[#This Row],[Total de Deduções\nNormais]]","v":175.03000000000003},50,{"$f":"Empregados[[#This Row],[Salário Bruto]]-Empregados[[#This Row],[Impostos e Deduções]]-Empregados[[#This Row],[Outras Deduções]]","v":234.96999999999997},null,10,1,3,2.3E-2,0.28000000000000003,6.3E-2,1.4500000000000001E-2,{"$f":"SUM(Empregados[[#This Row],[Tributação ao Estado]:[Imposto do Seguro de Saúde]])","v":0.38050000000000006},null,null,{"$f":"SUM(Empregados[[#This Row],[Dedução do Seguro]:[Outras Deduções Normais]])","v":0}]
[null,1049,"Luís Santos",40,1,null,null,null,{"$f":"SUM(Empregados[[#This Row],[Horas em Atividade Normais]:[Faltas por Doença (em horas)]])*Empregados[[#This Row],[Vencimento por Hora]]+Empregados[[#This Row],[Horas Extraordinárias]]*Empregados[[#This Row],[Taxa de Horas Extraordinárias]]","v":615},{"$f":"Empregados[[#This Row],[Salário Bruto]]*Empregados[[#This Row],[Total da Retenção de Impostos]] + Empregados[[#This Row],[Total de Deduções\nNormais]]","v":259.00750000000005},23,{"$f":"Empregados[[#This Row],[Salário Bruto]]-Empregados[[#This Row],[Impostos e Deduções]]-Empregados[[#This Row],[Outras Deduções]]","v":332.99249999999995},null,15,1,2,2.3E-2,0.28000000000000003,6.3E-2,1.4500000000000001E-2,{"$f":"SUM(Empregados[[#This Row],[Tributação ao Estado]:[Imposto do Seguro de Saúde]])","v":0.38050000000000006},25,null,{"$f":"SUM(Empregados[[#This Row],[Dedução do Seguro]:[Outras Deduções Normais]])","v":25}]
[null,"Totais",{"$f":"SUBTOTAL(103,Empregados[Nome do Funcionário])","v":9},{"$f":"SUBTOTAL(109,Empregados[Horas em Atividade Normais])","v":371},{"$f":"SUBTOTAL(109,Empregados[Férias (em horas)])","v":24},{"$f":"SUBTOTAL(109,Empregados[Faltas por Doença (em horas)])","v":6},{"$f":"SUBTOTAL(109,Empregados[Horas Extraordinárias])","v":3},null,{"$f":"SUBTOTAL(109,Empregados[Salário Bruto])","v":5063},{"$f":"SUBTOTAL(109,Empregados[Impostos e Deduções])","v":2239.4715000000001},{"$f":"SUBTOTAL(109,Empregados[Outras Deduções])","v":118},{"$f":"SUBTOTAL(109,Empregados[Rendimento Líquido])","v":2705.5284999999994},null,null,null,null,null,null,null,null,null,{"$f":"SUBTOTAL(109,Empregados[Dedução do Seguro])","v":143},{"$f":"SUBTOTAL(109,Empregados[Outras Deduções Normais])","v":170},{"$f":"SUBTOTAL(109,Empregados[Total de Deduções\nNormais])","v":313}]

{"sheet":"modelo_de_recibo_de_vencimento","index":1,"n_rows":47,"n_cols":13,"rows_kept":47,"cut":false,"hidden":true,"merged":[[45,2,45,3],[32,2,32,3],[33,2,33,3],[20,2,20,3],[21,2,21,3],[2,3,2,4],[14,3,14,4],[26,3,26,4],[38,3,38,4],[44,2,44,3],[8,2,8,3],[9,2,9,3],[2,7,2,8],[14,7,14,8],[26,7,26,8],[38,7,38,8],[38,11,38,12],[26,11,26,12],[14,11,14,12],[2,11,2,12]]}
[]
[null,null,{"$f":"NomeDaEmpresa","v":"ADVENTURE WORKS"}]
[null,null,"PERÍODO",{"$f":"FimDoPeríodo","v":"2013-04-08"},null,null,"NOME",{"$f":"IFERROR(INDEX(Empregados[Nome do Funcionário],Recibo),\"\")","v":"Luís Alverca"},null,null,"ID DO FUNCIONÁRIO",{"$f":"IFERROR(INDEX(Empregados[ID],Recibo),\"\")","v":1001}]
[null,null,"Estado do Imposto",null,{"$f":"IFERROR(INDEX(Empregados[Estado do Imposto],Recibo),\"\")","v":1},null,"Subsídios Federais (Formulário Americano W-4)",null,{"$f":"IFERROR(INDEX(Empregados[Subsídios Federais],Recibo),\"\")","v":4},null,"Horas em Atividade",null,{"$f":"IFERROR(INDEX(Empregados[Horas em Atividade Normais],Recibo),\"\")","v":50}]
[null,null,"Taxa por Hora",null,{"$f":"IFERROR(INDEX(Empregados[Vencimento por Hora],Recibo),\"\")","v":10},null,"Taxa de Horas Extraordinárias",null,{"$f":"IFERROR(INDEX(Empregados[Taxa de Horas Extraordinárias],Recibo),\"\")","v":0},null,"Faltas por Doença (em horas)",null,{"$f":"IFERROR(INDEX(Empregados[Faltas por Doença (em horas)],Recibo),\"\")","v":1}]
[null,null,"Imposto para a Segurança Social",null,{"$f":"IFERROR(INDEX(Empregados[Imposto para a Segurança Social],Recibo)  *  INDEX(Empregados[Salário Bruto],Recibo),\"\")","v":35.28},null,"Imposto sobre o Salário",null,{"$f":"IFERROR(INDEX(Empregados[Imposto sobre o Salário],Recibo)  *  INDEX(Empregados[Salário Bruto],Recibo),\"\")","v":156.80000000000001},null,"Férias (em horas)",null,{"$f":"IFERROR(INDEX(Empregados[Férias (em horas)],Recibo),\"\")","v":5}]
[null,null,"Imposto do Seguro de Saúde",null,{"$f":"IFERROR(INDEX(Empregados[Imposto do Seguro de Saúde],Recibo)  *  INDEX(Empregados[Salário Bruto],Recibo),\"\")","v":8.120000000000001},null,"Tributação ao Estado",null,{"$f":"IFERROR(INDEX(Empregados[Tributação ao Estado],Recibo)  *  INDEX(Empregados[Salário Bruto],Recibo),\"\")","v":12.879999999999999},null,"Horas Extraordinárias",null,{"$f":"IFERROR(INDEX(Empregados[Horas Extraordinárias],Recibo),\"\")","v":0}]
[null,null,"Dedução do Seguro",null,{"$f":"IFERROR(INDEX(Empregados[Dedução do Seguro],Recibo),\"\")","v":20},null,"Outras Deduções Normais",null,{"$f":"IFERROR(INDEX(Empregados[Outras Deduções Normais],Recibo),\"\")","v":40},null,"Rendimento Bruto",null,{"$f":"IFERROR(INDEX(Empregados[Salário Bruto],Recibo),\"\")","v":560}]
[null,null,"Total de Impostos e",null,{"$f":"IFERROR(INDEX(Empregados[Impostos e Deduções],Recibo),\"\")","v":273.08000000000004},null,"Outras Deduções",null,{"$f":"IFERROR(INDEX(Empregados[Outras Deduções],Recibo),\"\")","v":20},null,"Total de Impostos e Deduções",null,{"$f":"IFERROR(INDEX(Empregados[Impostos e Deduções],Recibo)  +  INDEX(Empregados[Outras Deduções],Recibo),\"\")","v":293.08000000000004}]
[null,null,"Deduções Normais"]
[null,null,null,null,null,null,null,null,null,null,"RENDIMENTO LÍQUIDO",null,{"$f":"IFERROR(INDEX(Empregados[Rendimento Líquido],Recibo),\"\")","v":266.91999999999996}]
[]
[]
[null,null,{"$f":"NomeDaEmpresa","v":"ADVENTURE WORKS"}]
[null,null,"PERÍODO",{"$f":"FimDoPeríodo","v":"2013-04-08"},null,null,"NOME",{"$f":"IFERROR(INDEX(Empregados[Nome do Funcionário],Recibo),\"\")","v":"Francisco Chaves"},null,null,"ID DO FUNCIONÁRIO",{"$f":"IFERROR(INDEX(Empregados[ID],Recibo),\"\")","v":1002}]
[null,null,"Estado do Imposto",null,{"$f":"IFERROR(INDEX(Empregados[Estado do Imposto],Recibo),\"\")","v":1},null,"Subsídios Federais (Formulário Americano W-4)",null,{"$f":"IFERROR(INDEX(Empregados[Subsídios Federais],Recibo),\"\")","v":1},null,"Horas em Atividade",null,{"$f":"IFERROR(INDEX(Empregados[Horas em Atividade Normais],Recibo),\"\")","v":40}]
[null,null,"Taxa por Hora",null,{"$f":"IFERROR(INDEX(Empregados[Vencimento por Hora],Recibo),\"\")","v":8},null,"Taxa de Horas Extraordinárias",null,{"$f":"IFERROR(INDEX(Empregados[Taxa de Horas Extraordinárias],Recibo),\"\")","v":0},null,"Faltas por Doença (em horas)",null,{"$f":"IFERROR(INDEX(Empregados[Faltas por Doença (em horas)],Recibo),\"\")","v":0}]
[null,null,"Imposto para a Segurança Social",null,{"$f":"IFERROR(INDEX(Empregados[Imposto para a Segurança Social],Recibo)  *  INDEX(Empregados[Salário Bruto],Recibo),\"\")","v":20.16},null,"Imposto sobre o Salário",null,{"$f":"IFERROR(INDEX(Empregados[Imposto sobre o Salário],Recibo)  *  INDEX(Empregados[Salário Bruto],Recibo),\"\")","v":89.600000000000009},null,"Férias (em horas)",null,{"$f":"IFERROR(INDEX(Empregados[Férias (em horas)],Recibo),\"\")","v":0}]
[null,null,"Imposto do Seguro de Saúde",null,{"$f":"IFERROR(INDEX(Empregados[Imposto do Seguro de Saúde],Recibo)  *  INDEX(Empregados[Salário Bruto],Recibo),\"\")","v":4.6400000000000006},null,"Tributação ao Estado",null,{"$f":"IFERROR(INDEX(Empregados[Tributação ao Estado],Recibo)  *  INDEX(Empregados[Salário Bruto],Recibo),\"\")","v":7.3599999999999994},null,"Horas Extraordinárias",null,{"$f":"IFERROR(INDEX(Empregados[Horas Extraordinárias],Recibo),\"\")","v":0}]
[null,null,"Dedução do Seguro",null,{"$f":"IFERROR(INDEX(Empregados[Dedução do Seguro],Recibo),\"\")","v":0},null,"Outras Deduções Normais",null,{"$f":"IFERROR(INDEX(Empregados[Outras Deduções Normais],Recibo),\"\")","v":10},null,"Rendimento Bruto",null,{"$f":"IFERROR(INDEX(Empregados[Salário Bruto],Recibo),\"\")","v":320}]
[null,null,"Total de Impostos e",null,{"$f":"IFERROR(INDEX(Empregados[Impostos e Deduções],Recibo),\"\")","v":131.76000000000002},null,"Outras Deduções",null,{"$f":"IFERROR(INDEX(Empregados[Outras Deduções],Recibo),\"\")","v":0},null,"Total de Impostos e Deduções",null,{"$f":"IFERROR(INDEX(Empregados[Impostos e Deduções],Recibo)  +  INDEX(Empregados[Outras Deduções],Recibo),\"\")","v":131.76000000000002}]
[null,null,"Deduções Normais"]
[null,null,null,null,null,null,null,null,null,null,"RENDIMENTO LÍQUIDO",null,{"$f":"IFERROR(INDEX(Empregados[Rendimento Líquido],Recibo),\"\")","v":188.23999999999998}]
[]
[]
[null,null,{"$f":"NomeDaEmpresa","v":"ADVENTURE WORKS"}]
[null,null,"PERÍODO",{"$f":"FimDoPeríodo","v":"2013-04-08"},null,null,"NOME",{"$f":"IFERROR(INDEX(Empregados[Nome do Funcionário],Recibo),\"\")","v":"Leonor Marques"},null,null,"ID DO FUNCIONÁRIO",{"$f":"IFERROR(INDEX(Empregados[ID],Recibo),\"\")","v":1003}]
[null,null,"Estado do Imposto",null,{"$f":"IFERROR(INDEX(Empregados[Estado do Imposto],Recibo),\"\")","v":1},null,"Subsídios Federais (Formulário Americano W-4)",null,{"$f":"IFERROR(INDEX(Empregados[Subsídios Federais],Recibo),\"\")","v":3},null,"Horas em Atividade",null,{"$f":"IFERROR(INDEX(Empregados[Horas em Atividade Normais],Recibo),\"\")","v":35}]
[null,null,"Taxa por Hora",null,{"$f":"IFERROR(INDEX(Empregados[Vencimento por Hora],Recibo),\"\")","v":14},null,"Taxa de Horas Extraordinárias",null,{"$f":"IFERROR(INDEX(Empregados[Taxa de Horas Extraordinárias],Recibo),\"\")","v":0},null,"Faltas por Doença (em horas)",null,{"$f":"IFERROR(INDEX(Empregados[Faltas por Doença (em horas)],Recibo),\"\")","v":0}]
[null,null,"Imposto para a Segurança Social",null,{"$f":"IFERROR(INDEX(Empregados[Imposto para a Segurança Social],Recibo)  *  INDEX(Empregados[Salário Bruto],Recibo),\"\")","v":33.515999999999998},null,"Imposto sobre o Salário",null,{"$f":"IFERROR(INDEX(Empregados[Imposto sobre o Salário],Recibo)  *  INDEX(Empregados[Salário Bruto],Recibo),\"\")","v":148.96},null,"Férias (em horas)",null,{"$f":"IFERROR(INDEX(Empregados[Férias (em horas)],Recibo),\"\")","v":3}]
[null,null,"Imposto do Seguro de Saúde",null,{"$f":"IFERROR(INDEX(Empregados[Imposto do Seguro de Saúde],Recibo)  *  INDEX(Empregados[Salário Bruto],Recibo),\"\")","v":7.7140000000000004},null,"Tributação ao Estado",null,{"$f":"IFERROR(INDEX(Empregados[Tributação ao Estado],Recibo)  *  INDEX(Empregados[Salário Bruto],Recibo),\"\")","v":12.236000000000001},null,"Horas Extraordinárias",null,{"$f":"IFERROR(INDEX(Empregados[Horas Extraordinárias],Recibo),\"\")","v":0}]
[null,null,"Dedução do Seguro",null,{"$f":"IFERROR(INDEX(Empregados[Dedução do Seguro],Recibo),\"\")","v":18},null,"Outras Deduções Normais",null,{"$f":"IFERROR(INDEX(Empregados[Outras Deduções Normais],Recibo),\"\")","v":20},null,"Rendimento Bruto",null,{"$f":"IFERROR(INDEX(Empregados[Salário Bruto],Recibo),\"\")","v":532}]
[null,null,"Total de Impostos e",null,{"$f":"IFERROR(INDEX(Empregados[Impostos e Deduções],Recibo),\"\")","v":240.42600000000004},null,"Outras Deduções",null,{"$f":"IFERROR(INDEX(Empregados[Outras Deduções],Recibo),\"\")","v":0},null,"Total de Impostos e Deduções",null,{"$f":"IFERROR(INDEX(Empregados[Impostos e Deduções],Recibo)  +  INDEX(Empregados[Outras Deduções],Recibo),\"\")","v":240.42600000000004}]
[null,null,"Deduções Normais"]
[null,null,null,null,null,null,null,null,null,null,"RENDIMENTO LÍQUIDO",null,{"$f":"IFERROR(INDEX(Empregados[Rendimento Líquido],Recibo),\"\")","v":291.57399999999996}]
[]
[]
[null,null,{"$f":"NomeDaEmpresa","v":"ADVENTURE WORKS"}]
[null,null,"PERÍODO",{"$f":"FimDoPeríodo","v":"2013-04-08"},null,null,"NOME",{"$f":"IFERROR(INDEX(Empregados[Nome do Funcionário],Recibo),\"\")","v":"Carlos Grilo"},null,null,"ID DO FUNCIONÁRIO",{"$f":"IFERROR(INDEX(Empregados[ID],Recibo),\"\")","v":1008}]
[null,null,"Estado do Imposto",null,{"$f":"IFERROR(INDEX(Empregados[Estado do Imposto],Recibo),\"\")","v":1},null,"Subsídios Federais (Formulário Americano W-4)",null,{"$f":"IFERROR(INDEX(Empregados[Subsídios Federais],Recibo),\"\")","v":0},null,"Horas em Atividade",null,{"$f":"IFERROR(INDEX(Empregados[Horas em Atividade Normais],Recibo),\"\")","v":50}]
[null,null,"Taxa por Hora",null,{"$f":"IFERROR(INDEX(Empregados[Vencimento por Hora],Recibo),\"\")","v":20},null,"Taxa de Horas Extraordinárias",null,{"$f":"IFERROR(INDEX(Empregados[Taxa de Horas Extraordinárias],Recibo),\"\")","v":0},null,"Faltas por Doença (em horas)",null,{"$f":"IFERROR(INDEX(Empregados[Faltas por Doença (em horas)],Recibo),\"\")","v":1}]
[null,null,"Imposto para a Segurança Social",null,{"$f":"IFERROR(INDEX(Empregados[Imposto para a Segurança Social],Recibo)  *  INDEX(Empregados[Salário Bruto],Recibo),\"\")","v":70.56},null,"Imposto sobre o Salário",null,{"$f":"IFERROR(INDEX(Empregados[Imposto sobre o Salário],Recibo)  *  INDEX(Empregados[Salário Bruto],Recibo),\"\")","v":313.60000000000002},null,"Férias (em horas)",null,{"$f":"IFERROR(INDEX(Empregados[Férias (em horas)],Recibo),\"\")","v":5}]
[null,null,"Imposto do Seguro de Saúde",null,{"$f":"IFERROR(INDEX(Empregados[Imposto do Seguro de Saúde],Recibo)  *  INDEX(Empregados[Salário Bruto],Recibo),\"\")","v":16.240000000000002},null,"Tributação ao Estado",null,{"$f":"IFERROR(INDEX(Empregados[Tributação ao Estado],Recibo)  *  INDEX(Empregados[Salário Bruto],Recibo),\"\")","v":25.759999999999998},null,"Horas Extraordinárias",null,{"$f":"IFERROR(INDEX(Empregados[Horas Extraordinárias],Recibo),\"\")","v":0}]
[null,null,"Dedução do Seguro",null,{"$f":"IFERROR(INDEX(Empregados[Dedução do Seguro],Recibo),\"\")","v":15},null,"Outras Deduções Normais",null,{"$f":"IFERROR(INDEX(Empregados[Outras Deduções Normais],Recibo),\"\")","v":0},null,"Rendimento Bruto",null,{"$f":"IFERROR(INDEX(Empregados[Salário Bruto],Recibo),\"\")","v":1120}]
[null,null,"Total de Impostos e",null,{"$f":"IFERROR(INDEX(Empregados[Impostos e Deduções],Recibo),\"\")","v":441.16000000000008},null,"Outras Deduções",null,{"$f":"IFERROR(INDEX(Empregados[Outras Deduções],Recibo),\"\")","v":0},null,"Total de Impostos e Deduções",null,{"$f":"IFERROR(INDEX(Empregados[Impostos e Deduções],Recibo)  +  INDEX(Empregados[Outras Deduções],Recibo),\"\")","v":441.16000000000008}]
[null,null,"Deduções Normais"]
[null,null,null,null,null,null,null,null,null,null,"RENDIMENTO LÍQUIDO",null,{"$f":"IFERROR(INDEX(Empregados[Rendimento Líquido],Recibo),\"\")","v":678.83999999999992}]